fUSD/lending_fUSD_20240616
["ID","MTS","AMOUNT","RATE_DAILY","PERIOD"]
[329670989,1718560238613,-500.0,0.00027761,8]
[329670990,1718560238626,-500.0,0.00027761,8]
[329670991,1718560238637,-500.0,0.00027761,8]
[329670992,1718560238649,-500.0,0.00027761,8]
[329670993,1718560238661,-500.0,0.00027761,8]
[329670994,1718560238673,-500.0,0.00027761,8]
[329670995,1718560238685,-500.0,0.00027761,8]
[329670996,1718560238707,-500.0,0.00027761,8]
[329670997,1718560238722,-500.0,0.00027761,8]
[329670998,1718560238737,-500.0,0.00027761,8]
[329671000,1718560238752,-325.82,0.00027761,8]
[329671002,1718560238771,-559.4198605,0.00027761,8]
[329671003,1718560238783,-500.0,0.00027761,8]
[329671004,1718560238795,-500.0,0.00027761,8]
[329671005,1718560238808,-423.48,0.00027761,8]
[329671006,1718560238818,-534.11,0.00027761,8]
[329671007,1718560238838,-500.0,0.00027761,8]
[329671008,1718560238849,-383.04,0.00027761,8]
[329671009,1718560238862,-500.0,0.00027761,8]
[329671010,1718560238875,-302.0,0.00027761,18]
[329671011,1718560238887,-500.0,0.00027761,8]
[329671012,1718560238899,-500.0,0.00027761,8]
[329671013,1718560238920,-500.0,0.00027761,8]
[329671014,1718560238943,-500.0,0.00027761,8]
[329671015,1718560238956,-500.0,0.00027761,8]
[329671016,1718560238996,-500.0,0.00027761,8]
[329671017,1718560239008,-500.0,0.00027761,8]
[329671018,1718560239037,-165.03,0.00027761,8]
[329671019,1718560239077,-500.0,0.00027761,8]
[329671020,1718560239117,-500.0,0.00027761,8]
[329671021,1718560239138,-500.0,0.00027761,8]
[329671022,1718560239165,-571.99,0.00027761,8]
[329671023,1718560239190,-690.3,0.00027761,8]
[329671024,1718560239208,-690.3,0.00027761,8]
[329671025,1718560239220,-690.3,0.00027761,8]
[329671026,1718560239233,-690.3,0.00027761,8]
[329671027,1718560239248,-538.51,0.00027761,8]
[329671028,1718560239262,-690.3,0.00027761,8]
[329671029,1718560239296,-690.3,0.00027761,8]
[329671030,1718560239319,-690.3,0.00027761,8]
[329671031,1718560239333,-690.3,0.00027761,8]
[329671032,1718560239358,-690.3,0.00027761,8]
[329671033,1718560239375,-690.3,0.00027761,8]
[329671034,1718560239404,-690.3,0.00027761,8]
[329671035,1718560239439,-690.3,0.00027761,8]
[329671036,1718560239494,-690.3,0.00027761,8]
[329671037,1718560239525,-690.3,0.00027761,8]
[329671038,1718560239552,-690.3,0.00027761,8]
[329671039,1718560239565,-690.3,0.00027761,8]
[329671040,1718560239576,-690.3,0.00027761,8]
[329671041,1718560239588,-690.3,0.00027761,8]
[329671042,1718560239599,-500.0,0.00027761,8]
[329671043,1718560239617,-500.0,0.00027761,8]
[329671044,1718560239636,-179.0,0.00027761,8]
[329671045,1718560239679,-500.58,0.00027761,8]
[329671046,1718560239701,-500.0,0.00027761,8]
[329671047,1718560239712,-500.0,0.00027761,8]
[329671048,1718560239723,-454.41,0.00027761,8]
[329671049,1718560239737,-500.0,0.00027761,8]
[329671050,1718560239772,-245.63,0.00027761,8]
[329671051,1718560239785,-500.0,0.00027761,8]
[329671052,1718560239798,-500.0,0.00027761,8]
[329671053,1718560239811,-500.0,0.00027761,8]
[329671054,1718560239840,-189.97,0.00027761,8]
[329671055,1718560239855,-498.69,0.00027761,8]
[329671056,1718560239883,-500.0,0.00027761,8]
[329671057,1718560239899,-500.0,0.00027761,8]
[329671058,1718560239915,-500.0,0.00027761,8]
[329671059,1718560239934,-478.99,0.00027761,8]
[329671060,1718560239972,-500.0,0.00027761,8]
[329671061,1718560239989,-500.0,0.00027761,8]
[329671062,1718560240000,-500.0,0.00027761,8]
[329671063,1718560240012,-458.59,0.00027761,8]
[329671064,1718560240027,-500.0,0.00027761,8]
[329671065,1718560240038,-400.94,0.00027761,8]
[329671066,1718560240049,-500.0,0.00027761,8]
[329671067,1718560240062,-297.28,0.00027761,8]
[329671068,1718560240095,-500.0,0.00027761,8]
[329671069,1718560240109,-232.2,0.00027761,8]
[329671070,1718560240135,-500.0,0.00027761,8]
[329671071,1718560240154,-500.0,0.00027761,8]
[329671072,1718560240178,-500.0,0.00027761,8]
[329671073,1718560240212,-271.11,0.00027761,8]
[329671074,1718560240240,-500.0,0.00027761,8]
[329671075,1718560240251,-500.0,0.00027761,8]
[329671076,1718560240268,-500.0,0.00027761,8]
[329671077,1718560240285,-547.67,0.00027761,8]
[329671079,1718560240297,-500.0,0.00027761,8]
[329671080,1718560240309,-500.0,0.00027761,8]
[329671081,1718560240326,-500.0,0.00027761,8]
[329671082,1718560240338,-500.0,0.00027761,8]
[329671083,1718560240357,-500.0,0.00027761,8]
[329671084,1718560240408,-500.0,0.00027761,8]
[329671086,1718560240441,-500.0,0.00027761,8]
[329671087,1718560240489,-632.14,0.00027761,8]
[329671088,1718560240505,-500.0,0.00027761,8]
[329671089,1718560240520,-500.0,0.00027761,8]
[329671090,1718560240540,-500.0,0.00027761,8]
[329671091,1718560240565,-500.0,0.00027761,8]
[329671092,1718560240618,-500.0,0.00027761,8]
[329671093,1718560240633,-500.0,0.00027761,8]
[329671095,1718560240646,-500.0,0.00027761,8]
[329671097,1718560240673,-500.0,0.00027761,8]
[329671098,1718560240695,-500.0,0.00027761,8]
[329671099,1718560240725,-500.0,0.00027761,8]
[329671100,1718560240747,-256.01,0.00027761,8]
[329671102,1718560240763,-500.0,0.00027761,8]
[329671103,1718560240783,-355.77,0.00027761,8]
[329671104,1718560240806,-500.0,0.00027761,8]
[329671106,1718560240830,-500.0,0.00027761,8]
[329671108,1718560240865,-564.43,0.00027761,8]
[329671109,1718560240886,-376.34,0.00027761,8]
[329671110,1718560240936,-331.44,0.00027761,8]
[329671111,1718560240954,-500.0,0.00027761,8]
[329671112,1718560240969,-500.0,0.00027761,8]
[329671113,1718560240981,-500.0,0.00027761,8]
[329671114,1718560240994,-263.54,0.00027761,8]
[329671115,1718560241012,-500.0,0.00027761,8]
[329671116,1718560241072,-500.0,0.00027761,8]
[329671117,1718560241091,-500.0,0.00027761,8]
[329671119,1718560241110,-500.0,0.00027761,8]
[329671120,1718560241128,-500.0,0.00027761,8]
[329671122,1718560241146,-500.0,0.00027761,8]
[329671124,1718560241176,-266.79,0.00027761,8]
[329671127,1718560241209,-377.15,0.00027761,8]
[329671128,1718560241220,-470.73,0.00027761,8]
[329671130,1718560241235,-523.56,0.00027761,8]
[329671133,1718560241288,-500.0,0.00027761,8]
[329671135,1718560241303,-500.0,0.00027761,8]
[329671137,1718560241333,-500.0,0.00027761,8]
[329671139,1718560241360,-623.39,0.00027761,8]
[329671141,1718560241384,-500.0,0.00027761,8]
[329671142,1718560241414,-500.0,0.00027761,8]
[329671144,1718560241477,-500.0,0.00027761,8]
[329671146,1718560241489,-438.36,0.00027761,8]
[329671148,1718560241507,-382.15,0.00027761,8]
[329671150,1718560241520,-500.0,0.00027761,8]
[329671152,1718560241533,-354.76,0.00027761,8]
[329671154,1718560241545,-500.0,0.00027761,8]
[329671156,1718560241564,-339.73,0.00027761,8]
[329671158,1718560241575,-500.0,0.00027761,8]
[329671160,1718560241606,-609.24478152,0.00027761,8]
[329671163,1718560241634,-628.68,0.00027761,8]
[329671164,1718560241661,-500.0,0.00027761,8]
[329671166,1718560241675,-519.58,0.00027761,8]
[329671168,1718560241698,-644.15,0.00027761,8]
[329671169,1718560241725,-500.0,0.00027761,8]
[329671171,1718560241741,-500.0,0.00027761,8]
[329671173,1718560241767,-500.0,0.00027761,8]
[329671174,1718560241793,-500.0,0.00027761,8]
[329671176,1718560241805,-318.25,0.00027761,8]
[329671177,1718560241828,-500.0,0.00027761,8]
[329671179,1718560241840,-500.0,0.00027761,8]
[329671181,1718560241857,-500.0,0.00027761,8]
[329671183,1718560241876,-500.0,0.00027761,8]
[329671185,1718560241888,-500.0,0.00027761,8]
[329671187,1718560241900,-500.0,0.00027761,8]
[329671189,1718560241913,-500.0,0.00027761,8]
[329671191,1718560241953,-500.0,0.00027761,8]
[329671193,1718560241965,-500.0,0.00027761,8]
[329671195,1718560241976,-500.0,0.00027761,8]
[329671197,1718560241988,-419.04,0.00027761,8]
[329671199,1718560242006,-500.0,0.00027761,8]
[329671201,1718560242018,-500.0,0.00027761,8]
[329671203,1718560242035,-500.0,0.00027761,8]
[329671206,1718560242061,-672.5,0.00027761,8]
[329671208,1718560242087,-500.0,0.00027761,8]
[329671210,1718560242106,-672.5,0.00027761,8]
[329671212,1718560242121,-672.5,0.00027761,8]
[329671215,1718560242148,-500.0,0.00027761,8]
[329671216,1718560242168,-672.5,0.00027761,8]
[329671218,1718560242183,-672.5,0.00027761,8]
[329671220,1718560242222,-500.0,0.00027761,8]
[329671222,1718560242272,-672.5,0.00027761,8]
[329671225,1718560242293,-500.0,0.00027761,8]
[329671228,1718560242356,-672.5,0.00027761,8]
[329671230,1718560242372,-500.0,0.00027761,8]
[329671231,1718560242388,-672.5,0.00027761,8]
[329671233,1718560242431,-500.0,0.00027761,8]
[329671235,1718560242453,-500.0,0.00027761,8]
[329671236,1718560242473,-672.5,0.00027761,8]
[329671240,1718560242515,-672.5,0.00027761,8]
[329671242,1718560242539,-500.0,0.00027761,8]
[329671243,1718560242561,-672.5,0.00027761,8]
[329671246,1718560242605,-404.83,0.00027761,8]
[329671248,1718560242617,-546.14,0.00027761,8]
[329671250,1718560242641,-672.5,0.00027761,8]
[329671252,1718560242655,-672.5,0.00027761,8]
[329671254,1718560242668,-672.5,0.00027761,8]
[329671257,1718560242721,-672.5,0.00027761,8]
[329671259,1718560242745,-672.5,0.00027761,8]
[329671261,1718560242779,-672.5,0.00027761,8]
[329671263,1718560242796,-672.5,0.00027761,8]
[329671266,1718560242814,-500.0,0.00027761,8]
[329671268,1718560242836,-233.88,0.00027761,8]
[329671270,1718560242854,-526.71,0.00027761,8]
[329671271,1718560242892,-500.0,0.00027761,8]
[329671273,1718560242904,-500.0,0.00027761,8]
[329671276,1718560242919,-584.23,0.00027761,8]
[329671277,1718560242931,-500.0,0.00027761,8]
[329671279,1718560242957,-500.0,0.00027761,8]
[329671281,1718560242975,-500.0,0.00027761,8]
[329671282,1718560242988,-500.0,0.00027761,8]
[329671285,1718560243005,-380.82,0.00027761,8]
[329671288,1718560243022,-500.0,0.00027761,8]
[329671292,1718560243034,-500.0,0.00027761,8]
[329671293,1718560243207,-396.52,0.00027761,8]
[329671295,1718560243250,-500.0,0.00027761,8]
[329671297,1718560243292,-500.0,0.00027761,8]
[329671299,1718560243305,-500.0,0.00027761,8]
[329671301,1718560243317,-398.14,0.00027761,8]
[329671303,1718560243344,-500.0,0.00027761,8]
[329671305,1718560243357,-500.0,0.00027761,8]
[329671308,1718560243377,-220.86,0.00027761,8]
[329671310,1718560243396,-166.89,0.00027761,8]
[329671312,1718560243412,-500.0,0.00027761,8]
[329671314,1718560243423,-500.0,0.00027761,8]
[329671316,1718560243442,-500.0,0.00027761,8]
[329671317,1718560243472,-333.44,0.00027761,8]
[329671320,1718560243496,-367.54,0.00027761,8]
[329671321,1718560243507,-500.0,0.00027761,8]
[329671322,1718560243518,-500.0,0.00027761,8]
[329671324,1718560243532,-500.0,0.00027761,8]
[329671326,1718560243543,-500.0,0.00027761,8]
[329671327,1718560243554,-500.0,0.00027761,8]
[329671329,1718560243567,-500.0,0.00027761,8]
[329671331,1718560243581,-400.95,0.00027761,8]
[329671333,1718560243594,-500.0,0.00027761,8]
[329671334,1718560243607,-506.09,0.00027761,8]
[329671336,1718560243632,-268.07,0.00027761,8]
[329671337,1718560243643,-500.0,0.00027761,8]
[329671339,1718560243673,-500.0,0.00027761,8]
[329671341,1718560243685,-500.0,0.00027761,8]
[329671344,1718560243714,-500.0,0.00027761,8]
[329671346,1718560243735,-500.0,0.00027761,8]
[329671350,1718560243754,-500.0,0.00027761,8]
[329671353,1718560243766,-500.0,0.00027761,8]
[329671354,1718560243777,-500.0,0.00027761,8]
[329671357,1718560243789,-500.0,0.00027761,8]
[329671360,1718560243803,-500.0,0.00027761,8]
[329671363,1718560243816,-165.25,0.00027761,8]
[329671366,1718560243834,-500.0,0.00027761,8]
[329671369,1718560243850,-500.0,0.00027761,8]
[329671371,1718560243864,-500.0,0.00027761,8]
[329671373,1718560243883,-500.0,0.00027761,8]
[329671375,1718560243913,-574.1,0.00027761,8]
[329671376,1718560243934,-577.79587037,0.00027761,8]
[329671378,1718560243967,-500.0,0.00027761,8]
[329671380,1718560243987,-608.65,0.00027761,8]
[329671381,1718560244022,-622.71,0.00027761,8]
[329671384,1718560244045,-500.0,0.00027761,8]
[329671385,1718560244080,-490.93,0.00027761,8]
[329671387,1718560244113,-503.26,0.00027761,8]
[329671391,1718560244143,-500.0,0.00027761,8]
[329671393,1718560244172,-221.39214937,0.00027761,8]
[329671395,1718560244198,-500.0,0.00027761,8]
[329671398,1718560244226,-500.0,0.00027761,8]
[329671400,1718560244239,-500.0,0.00027761,8]
[329671403,1718560244263,-500.0,0.00027761,8]
[329671405,1718560244279,-500.0,0.00027761,8]
[329671407,1718560244293,-406.49,0.00027761,8]
[329671409,1718560244316,-500.0,0.00027761,8]
[329671411,1718560244331,-500.0,0.00027761,8]
[329671413,1718560244344,-500.0,0.00027761,8]
[329671415,1718560244357,-500.0,0.00027761,8]
[329671418,1718560244380,-500.0,0.00027761,8]
[329671420,1718560244391,-500.0,0.00027761,8]
[329671422,1718560244403,-602.8,0.00027761,8]
[329671423,1718560244417,-500.0,0.00027761,8]
[329671425,1718560244430,-397.11,0.00027761,8]
[329671427,1718560244441,-500.0,0.00027761,8]
[329671430,1718560244456,-500.0,0.00027761,8]
[329671431,1718560244468,-500.0,0.00027761,8]
[329671433,1718560244480,-173.16,0.00027761,8]
[329671436,1718560244498,-500.0,0.00027761,8]
[329671438,1718560244519,-500.0,0.00027761,8]
[329671439,1718560244532,-319.04,0.00027761,8]
[329671442,1718560244548,-577.03,0.00027761,8]
[329671444,1718560244566,-500.0,0.00027761,8]
[329671446,1718560244580,-500.0,0.00027761,8]
[329671448,1718560244598,-249.71,0.00027761,8]
[329671450,1718560244611,-517.38,0.00027761,8]
[329671452,1718560244622,-339.13895217,0.00027761,8]
[329671453,1718560244633,-500.0,0.00027761,8]
[329671456,1718560244655,-551.98,0.00027761,8]
[329671458,1718560244670,-500.0,0.00027761,8]
[329671459,1718560244682,-500.0,0.00027761,8]
[329671461,1718560244698,-500.0,0.00027761,8]
[329671464,1718560244716,-500.0,0.00027761,8]
[329671465,1718560244732,-326.07,0.00027761,8]
[329671466,1718560244748,-500.0,0.00027761,8]
[329671467,1718560244767,-638.19,0.00027761,8]
[329671468,1718560244804,-500.0,0.00027761,8]
[329671469,1718560244820,-271.1,0.00027761,8]
[329671470,1718560244834,-500.0,0.00027761,8]
[329671471,1718560244848,-517.49,0.00027761,8]
[329671472,1718560244865,-500.0,0.00027761,8]
[329671473,1718560244893,-500.0,0.00027761,8]
[329671474,1718560244905,-500.0,0.00027761,8]
[329671475,1718560244916,-539.73,0.00027761,8]
[329671476,1718560244928,-389.01,0.00027761,8]
[329671477,1718560244942,-517.12,0.00027761,8]
[329671478,1718560244979,-500.0,0.00027761,8]
[329671479,1718560244992,-614.72,0.00027761,8]
[329671480,1718560245014,-500.0,0.00027761,8]
[329671481,1718560245026,-500.0,0.00027761,8]
[329671482,1718560245045,-500.0,0.00027761,8]
[329671483,1718560245058,-368.27,0.00027761,8]
[329671484,1718560245088,-238.0,0.00027762,5]
[329671485,1718560245101,-1104.24887864,0.00027762,13]
[329671486,1718560245113,-298.9528409,0.00027762,2]
[329671487,1718560245137,-203.2337664,0.00027762,2]
[329671488,1718560245172,-154461.14072085,0.00027762,2]
[329671489,1718560245214,-346580.24929809,0.00027762,2]
[329671490,1718560245348,-388124.93485841,0.00027762,2]
[329671491,1718560245691,-500.0,0.00027761,8]
[329671492,1718560245716,-69448.13816286,0.00027762,2]
[329671493,1718560245733,-107337.64960307,0.00027762,2]
[329671494,1718560245776,-68777.07993003,0.00027762,2]
[329671495,1718560245811,-72223.01230404,0.00027762,2]
[329671496,1718560245955,-320877.76034216,0.00027762,2]
[329671497,1718560245990,-453.69643616,0.00027762,2]
[329671498,1718560246022,-792.38851349,0.00027762,2]
[329671499,1718560246036,-449.3685477,0.00027762,2]
[329671500,1718560246065,-432.0,0.00027762,2]
[329671501,1718560246371,-8903.12272239,0.00027762,2]
[329671502,1718560246469,-293.84416341,0.00027762,2]
[329671512,1718560248310,-720.35999999,0.00027762,2]
[329671520,1718560249283,-221.0,0.00027762,5]
[329671521,1718560249295,-184.50445589,0.00027762,2]
[329671522,1718560375527,174.07,0.00026546,120]
[329671523,1718560406293,3961.30745125,0.00017259,2]
[329671524,1718560460011,180.84144565,0.00017259,2]
[329671525,1718560460372,263.13724632,0.00017259,2]
[329671526,1718560474375,262.87254159,0.00017259,2]
[329671527,1718560478004,263.95080028,0.00017259,2]
[329671533,1718561368629,-150.0,0.00019725,2]
[329671534,1718561368718,-169.7,0.00019922,2]
[329671535,1718561368761,-226.81877563,0.000201,2]
[329671536,1718561368832,-1250.0,0.00021,2]
[329671537,1718561368895,-1204.87,0.00021698,2]
[329671538,1718561368939,-150.99,0.00021698,2]
[329671539,1718561369006,-758.19,0.00021698,2]
[329671540,1718561369089,-210.0,0.00021698,2]
[329671541,1718561369199,-26595.27,0.000219,2]
[329671542,1718561369253,-7720.81,0.000219,2]
[329671543,1718561369333,-224.99,0.000219,3]
[329671544,1718561369400,-500.0,0.000219,2]
[329671545,1718561369445,-1300.0,0.00023,2]
[329671546,1718561369502,-150.99,0.00023,2]
[329671547,1718561369558,-150.99,0.00023,2]
[329671548,1718561369638,-449.64,0.00023082,2]
[329671549,1718561369698,-293.0,0.00023867,2]
[329671550,1718561369750,-153.2,0.00024384,2]
[329671551,1718561369796,-250.0,0.0002445,2]
[329671552,1718561369854,-23890.0,0.00024464,2]
[329671553,1718561369927,-200.0,0.00024476,2]
[329671554,1718561369980,-1450.56,0.00024476,2]
[329671555,1718561370026,-244.02,0.00024544,2]
[329671556,1718561370066,-500.0,0.000247,2]
[329671557,1718561370129,-282.1196435,0.00024706,2]
[329671558,1718561370208,-150.0,0.00024811,2]
[329671559,1718561370261,-466.44,0.00024843,2]
[329671560,1718561370294,-20016.73,0.0002487,2]
[329671561,1718561370353,-500.0,0.00024878,2]
[329671562,1718561370395,-152.76,0.00024882,2]
[329671563,1718561370427,-200.0,0.00024885,2]
[329671564,1718561370504,-607.11,0.00024891,2]
[329671565,1718561370573,-250.0,0.00024918,2]
[329671566,1718561370610,-841.83,0.00024918,2]
[329671567,1718561370645,-152.76,0.00024954,2]
[329671568,1718561370690,-753.23334945,0.00024984,2]
[329671569,1718561370728,-1737.96869295,0.0002499,2]
[329671570,1718561370778,-1350.0,0.00025,2]
[329671571,1718561370831,-152.76,0.00025026,2]
[329671572,1718561370894,-1000.0,0.00025029,2]
[329671573,1718561370931,-230.11980446,0.00025095,2]
[329671574,1718561370986,-152.76,0.00025098,2]
[329671575,1718561371059,-177.58,0.00025101,2]
[329671576,1718561371093,-1336.19,0.00025102,2]
[329671577,1718561371152,-969.89,0.00025143,2]
[329671578,1718561371206,-152.76,0.0002517,2]
[329671579,1718561371270,-3874.79,0.00025195,2]
[329671580,1718561371335,-1890.54,0.00025195,2]
[329671581,1718561371374,-152.76,0.00025242,2]
[329671582,1718561371423,-152.76,0.00025314,2]
[329671583,1718561371477,-194.62,0.00025325,2]
[329671584,1718561371516,-449.64,0.00025346,2]
[329671585,1718561371553,-152.76,0.00025386,2]
[329671586,1718561371586,-150.07,0.00025438,2]
[329671587,1718561371629,-152.76,0.00025458,2]
[329671588,1718561371666,-152.76,0.0002553,2]
[329671589,1718561371715,-152.76,0.00025602,2]
[329671590,1718561371758,-152.76,0.00025674,2]
[329671591,1718561371811,-250.0,0.00025698,2]
[329671592,1718561372027,-152.76,0.00025746,2]
[329671593,1718561372072,-200.0,0.00025748,2]
[329671594,1718561372112,-1012.08,0.00025751,2]
[329671595,1718561372148,-1012.08,0.00025757,2]
[329671596,1718561372190,-1012.08,0.00025764,2]
[329671597,1718561372275,-244.02,0.00025771,2]
[329671598,1718561372324,-1012.08,0.00025771,2]
[329671599,1718561372363,-1012.08,0.00025778,2]
[329671600,1718561372405,-1012.08,0.00025785,2]
[329671601,1718561372451,-1012.08,0.00025791,2]
[329671602,1718561372517,-1012.08,0.00025798,2]
[329671603,1718561372573,-1012.08,0.00025805,2]
[329671604,1718561372615,-1012.08,0.00025812,2]
[329671605,1718561372674,-152.76,0.00025818,2]
[329671606,1718561372737,-1012.08,0.00025818,2]
[329671607,1718561372792,-1012.08,0.00025825,2]
[329671608,1718561372831,-1012.08,0.00025832,2]
[329671609,1718561372891,-1012.08,0.00025839,2]
[329671610,1718561372941,-1012.08,0.00025845,2]
[329671611,1718561373047,-1012.08,0.00025852,2]
[329671612,1718561373094,-1012.08,0.00025859,2]
[329671613,1718561373143,-1012.08,0.00025866,2]
[329671614,1718561373178,-1012.08,0.00025873,2]
[329671615,1718561373224,-1012.08,0.00025879,2]
[329671616,1718561373270,-152.76,0.0002589,2]
[329671617,1718561373312,-166.41,0.00025936,2]
[329671618,1718561373354,-152.76,0.00025962,2]
[329671619,1718561373388,-152.76,0.00026034,2]
[329671620,1718561373424,-152.76,0.00026106,2]
[329671621,1718561373464,-152.76,0.00026178,2]
[329671622,1718561373515,-230.11980444,0.00026333,2]
[329671623,1718561373566,-1301.42464086,0.00026372,2]
[329671624,1718561373603,-168.13,0.00026501,2]
[329671625,1718561373646,-879.30463729,0.00026546,7]
[329671626,1718561373684,-626.22089567,0.0002665,2]
[329671627,1718561373743,-5060.46989472,0.000269,14]
[329671628,1718561373789,-244.02,0.00026998,2]
[329671629,1718561373841,-1400.0,0.00027,2]
[329671630,1718561373876,-2500.0,0.000271,2]
[329671631,1718561373919,-151.0,0.00027309,7]
[329671632,1718561373953,-218.496897,0.00027397,2]
[329671633,1718561373995,-150.0,0.00027397,2]
[329671634,1718561374036,-1673.0,0.000274,2]
[329671635,1718561374073,-500.0,0.00027469,2]
[329671636,1718561374118,-500.0,0.00027469,2]
[329671637,1718561374160,-500.0,0.00027469,2]
[329671638,1718561374206,-518.12955381,0.00027469,2]
[329671639,1718561374253,-500.0,0.00027469,2]
[329671640,1718561374309,-500.0,0.00027469,2]
[329671641,1718561374345,-500.0,0.00027469,2]
[329671642,1718561374378,-102808.2914,0.0002747,2]
[329671643,1718561374427,-150.0,0.00027498,2]
[329671644,1718561374459,-300.0,0.000275,2]
[329671645,1718561374504,-150.0,0.00027506,2]
[329671646,1718561374542,-150.0,0.00027506,2]
[329671647,1718561374616,-150.0,0.00027508,2]
[329671648,1718561374692,-150.0,0.00027509,2]
[329671649,1718561374756,-150.0,0.0002751,2]
[329671650,1718561374816,-150.0,0.00027512,2]
[329671651,1718561374862,-150.0,0.00027516,2]
[329671652,1718561374964,-150.0,0.00027525,2]
[329671653,1718561375073,-150.0,0.00027525,2]
[329671654,1718561375159,-150.0,0.00027529,2]
[329671655,1718561375222,-150.0,0.0002753,2]
[329671656,1718561375265,-150.0,0.00027532,2]
[329671657,1718561375307,-150.0,0.00027533,2]
[329671658,1718561375398,-150.0,0.00027535,2]
[329671659,1718561375463,-150.0,0.00027544,2]
[329671660,1718561375545,-150.0,0.00027545,2]
[329671661,1718561375600,-150.0,0.00027545,2]
[329671662,1718561375664,-150.0,0.00027546,2]
[329671663,1718561375708,-150.0,0.00027552,2]
[329671664,1718561375751,-150.0,0.00027552,2]
[329671665,1718561375784,-1009.73969121,0.00027562,2]
[329671666,1718561375826,-150.0,0.00027563,2]
[329671667,1718561375893,-150.0,0.00027567,2]
[329671668,1718561375950,-150.0,0.0002757,2]
[329671669,1718561376006,-230.11980444,0.0002757,2]
[329671670,1718561376055,-331.38160401,0.0002757,2]
[329671671,1718561376123,-500.0,0.0002757,2]
[329671672,1718561376173,-28455.1282,0.0002757,2]
[329671673,1718561376221,-150.0,0.00027574,2]
[329671674,1718561376262,-150.0,0.00027575,2]
[329671675,1718561376316,-1009.73969121,0.00027577,2]
[329671676,1718561376356,-150.0,0.00027585,2]
[329671677,1718561376393,-150.0,0.00027589,2]
[329671678,1718561376441,-150.0,0.0002759,2]
[329671679,1718561376476,-1009.73969121,0.00027593,2]
[329671680,1718561376516,-150.0,0.00027595,2]
[329671681,1718561376561,-150.0,0.00027597,2]
[329671682,1718561376602,-150.0,0.00027598,2]
[329671683,1718561376652,-150.0,0.00027604,2]
[329671684,1718561376708,-150.0,0.00027605,2]
[329671685,1718561376749,-1009.73969121,0.00027608,2]
[329671686,1718561376918,-449.64,0.0002761,2]
[329671687,1718561376977,-150.0,0.0002761,2]
[329671688,1718561377071,-150.0,0.00027612,2]
[329671689,1718561377158,-150.0,0.00027612,2]
[329671690,1718561377227,-150.0,0.00027614,2]
[329671691,1718561377298,-150.0,0.00027615,2]
[329671692,1718561377356,-150.0,0.00027616,2]
[329671693,1718561377400,-150.0,0.00027623,2]
[329671694,1718561377439,-1009.73969121,0.00027624,2]
[329671695,1718561377486,-150.0,0.00027624,2]
[329671696,1718561377551,-150.0,0.00027624,2]